bitfinex-derivatives/quotes_BTCF0:USTF0_20250315
["timestamp","ask_amount","ask_price","bid_price","bid_amount"]
[1742000004019,0.3774316,84364.0,84363.0,0.422133]
[1742000010320,0.3455316,84364.0,84363.0,0.422133]
[1742000010521,0.197,84365.0,84364.0,0.1185316]
[1742000010725,0.3155301,84365.0,84364.0,0.9935316]
[1742000011131,0.3155301,84365.0,84364.0,0.7235316]
[1742000011517,0.3155301,84365.0,84364.0,0.9735316]
[1742000012120,0.3155301,84365.0,84364.0,0.4735316]
[1742000012332,0.3155301,84365.0,84364.0,0.7335316]
[1742000012626,0.3155301,84365.0,84364.0,0.7435316]
[1742000012831,0.3155301,84365.0,84364.0,0.4735316]
[1742000013023,0.3488301,84365.0,84364.0,0.7135316]
[1742000013224,0.3488301,84365.0,84364.0,0.4735316]
[1742000013533,0.3488301,84365.0,84364.0,0.9835316]
[1742000013924,0.3155301,84365.0,84364.0,0.9835316]
[1742000014336,0.3155301,84365.0,84364.0,0.9335316]
[1742000014534,0.3155301,84365.0,84364.0,0.9735316]
[1742000014829,0.1185301,84365.0,84364.0,0.9835316]
[1742000015330,0.1185301,84365.0,84364.0,0.9935316]
[1742000015633,0.1185301,84365.0,84364.0,0.7435316]
[1742000015831,0.1185301,84365.0,84364.0,0.7335316]
[1742000016030,0.1185301,84365.0,84364.0,0.7635316]
[1742000016634,0.1185301,84365.0,84364.0,0.4735316]
[1742000017025,0.1185301,84365.0,84364.0,0.7235316]
[1742000017233,0.1185301,84365.0,84364.0,0.4735316]
[1742000018224,0.1185301,84365.0,84364.0,0.7435316]
[1742000018735,0.1185301,84365.0,84364.0,0.7135316]
[1742000019333,0.1185301,84365.0,84364.0,0.4735316]
[1742000019635,0.1498301,84365.0,84364.0,0.4735316]
[1742000019830,0.1185301,84365.0,84364.0,0.7335316]
[1742000020132,0.1185301,84365.0,84364.0,0.4735316]
[1742000020333,0.1185291,84367.0,84366.0,0.1185287]
[1742000020532,0.1185291,84367.0,84366.0,0.3485287]
[1742000021034,0.118526,84368.0,84367.0,0.1777874]
[1742000021332,0.118526,84368.0,84367.0,0.9777874]
[1742000021534,0.2327638,84370.0,84369.0,0.1185245]
[1742000021834,0.2327638,84370.0,84369.0,0.8985245]
[1742000022025,0.2327638,84370.0,84369.0,0.3685245]
[1742000022226,0.0592604,84372.0,84371.0,0.1185217]
[1742000022426,0.0592604,84372.0,84371.0,0.7293217]
[1742000024633,0.1185181,84374.0,84373.0,0.1777769]
[1742000024826,0.1185181,84374.0,84373.0,0.4377769]
[1742000025221,0.2042963,84378.0,84373.0,0.4377769]
[1742000025222,0.1185144,84378.0,84377.0,0.1185133]
[1742000025429,0.1185144,84378.0,84377.0,0.3785133]
[1742000026539,0.1185144,84378.0,84377.0,0.39037558]
[1742000027841,0.1509144,84378.0,84377.0,0.39037558]
[1742000028138,0.1185144,84378.0,84377.0,0.39037558]
[1742000028324,0.1509144,84378.0,84377.0,0.39037558]
[1742000028840,0.1823144,84378.0,84377.0,0.39037558]
[1742000030240,0.4723144,84378.0,84377.0,0.39037558]
[1742000030441,0.1823144,84378.0,84377.0,0.39037558]
[1742000031441,0.1823144,84378.0,84377.0,0.75117558]
[1742000038646,0.1823144,84378.0,84377.0,0.78127558]
[1742000040241,0.1823144,84378.0,84377.0,0.81237558]
[1742000040749,0.1185144,84378.0,84377.0,0.81237558]
[1742000040950,0.1821144,84378.0,84377.0,0.81237558]
[1742000048553,0.0592524,84383.0,84382.0,0.1777559]
[1742000048742,0.0592524,84383.0,84382.0,0.6777559]
[1742000049651,0.1777573,84383.0,84382.0,0.6777559]
[1742000050748,0.1777573,84383.0,84382.0,0.29]
[1742000051342,0.2407573,84383.0,84382.0,0.29]
[1742000053537,0.1185077,84381.0,84380.0,0.3941]
[1742000053746,0.1185077,84381.0,84380.0,0.6141]
[1742000054049,0.1821077,84381.0,84380.0,0.6141]
[1742000054853,0.1821077,84381.0,84380.0,0.3941]
[1742000055952,0.1821077,84381.0,84377.0,0.49249468]
[1742000055953,0.3153119,84378.0,84377.0,0.36212]
[1742000056258,0.5653119,84378.0,84377.0,0.3608]
[1742000056555,0.6060119,84378.0,84377.0,0.3608]
[1742000056849,0.3153161,84375.0,84374.0,0.00017777]
[1742000057054,0.4295161,84375.0,84374.0,0.00017777]
[1742000057250,0.6795161,84375.0,84374.0,0.00017777]
[1742000057451,0.6595161,84375.0,84374.0,0.00017777]
[1742000057651,0.7216161,84375.0,84374.0,0.00017777]
[1742000057955,0.7616161,84375.0,84374.0,0.00017777]
[1742000058161,0.77361898,84375.0,84374.0,0.00017777]
[1742000058344,0.50361898,84375.0,84374.0,0.00017777]
[1742000058548,0.79361898,84375.0,84374.0,0.00017777]
[1742000059047,1.15441898,84375.0,84374.0,7e-08]
[1742000062950,0.1185498,84351.0,84350.0,0.031]
[1742000063257,0.1185498,84351.0,84350.0,0.04305277]
[1742000063657,0.1185498,84351.0,84350.0,0.031]
[1742000064051,0.1820498,84351.0,84350.0,0.031]
[1742000064247,0.4220498,84351.0,84350.0,0.031]
[1742000064463,0.1820498,84351.0,84350.0,0.031]
[1742000065359,0.1820498,84351.0,84350.0,0.039]
[1742000067559,0.3788498,84351.0,84350.0,0.039]
[1742000068161,0.3466498,84351.0,84350.0,0.299]
[1742000068360,0.1185498,84351.0,84350.0,0.3775512]
[1742000068554,0.1185498,84351.0,84350.0,0.6786512]
[1742000068754,0.1185498,84351.0,84350.0,1.0294512]
[1742000068949,0.1185498,84351.0,84350.0,0.7694512]
[1742000069157,0.1185498,84351.0,84350.0,1.0194512]
[1742000069459,0.1185498,84351.0,84350.0,0.7694512]
[1742000069667,0.1185498,84351.0,84350.0,1.2594512]
[1742000069963,0.1185498,84351.0,84350.0,0.7694512]
[1742000071758,0.1185498,84351.0,84350.0,1.0194512]
[1742000072567,0.1185498,84351.0,84350.0,1.2694512]
[1742000072764,0.2560602,84372.0,84356.0,0.1185414]
[1742000073062,0.05944741,84359.0,84358.0,0.47934]
[1742000073256,0.05944741,84359.0,84358.0,1.06014]
[1742000073457,0.00017741,84359.0,84358.0,1.04014]
[1742000073668,0.00017741,84359.0,84358.0,1.31014]
[1742000073852,0.00017741,84359.0,84358.0,1.05014]
[1742000074057,0.00017741,84359.0,84358.0,1.04014]
[1742000074352,0.00017741,84359.0,84358.0,1.27014]
[1742000074569,0.00017741,84359.0,84358.0,1.31014]
[1742000075456,0.00017741,84359.0,84358.0,1.04014]
[1742000075766,0.00017741,84359.0,84358.0,1.30314]
[1742000076662,0.00017741,84359.0,84358.0,1.04314]
[1742000077469,0.00017741,84359.0,84358.0,1.30314]
[1742000077665,0.0592644,84366.0,84365.0,0.1777916]
[1742000077865,0.0592644,84366.0,84365.0,1.3185916]
[1742000078069,0.059262,84370.0,84369.0,0.0592622]
[1742000078260,0.0592571,84378.0,84377.0,0.1777643]
[1742000078564,0.0592571,84378.0,84377.0,0.7485643]
[1742000078771,0.0917571,84378.0,84377.0,0.7485643]
[1742000079171,0.0917571,84378.0,84377.0,0.76059798]
[1742000079571,0.0592571,84378.0,84377.0,0.76059798]
[1742000080163,0.0592571,84378.0,84377.0,1.25059798]
[1742000080365,0.0592571,84378.0,84377.0,0.76059798]
[1742000080568,0.0592571,84378.0,84377.0,1.03059798]
[1742000080764,0.0592571,84378.0,84377.0,1.00059798]
[1742000080965,0.0592571,84378.0,84377.0,1.01059798]
[1742000081165,0.0592571,84378.0,84377.0,0.76059798]
[1742000081664,0.0592571,84378.0,84377.0,1.01059798]
[1742000082263,0.0592571,84378.0,84377.0,0.99059798]
[1742000082464,0.0592571,84378.0,84377.0,1.00059798]
[1742000082774,0.0592571,84378.0,84377.0,0.99059798]
[1742000083271,0.0592571,84378.0,84377.0,1.02059798]
[1742000083470,0.0592571,84378.0,84377.0,0.76059798]
[1742000083968,0.0592571,84378.0,84377.0,1.02059798]
[1742000084362,0.0592571,84378.0,84377.0,0.76059798]
[1742000084558,0.0592571,84378.0,84377.0,1.00059798]
[1742000085370,0.0592571,84378.0,84377.0,1.02059798]
[1742000085976,0.0592571,84378.0,84377.0,1.03059798]
[1742000086368,0.0592571,84378.0,84377.0,0.76059798]
[1742000086873,0.0592571,84378.0,84377.0,0.99059798]
[1742000087265,0.0592571,84378.0,84377.0,1.03059798]
[1742000087969,0.0592571,84378.0,84377.0,0.76059798]
[1742000088165,0.0592571,84378.0,84377.0,1.02059798]
[1742000088364,0.0592571,84378.0,84377.0,0.76059798]
[1742000089666,0.0908571,84378.0,84377.0,0.76059798]
[1742000089866,0.0592571,84378.0,84377.0,0.76059798]
[1742000090472,0.0592571,84378.0,84377.0,1.04059798]
[1742000090663,0.0592571,84378.0,84377.0,1.07139798]
[1742000090872,0.1777651,84380.0,84379.0,0.1185105]
[1742000091175,0.1777651,84380.0,84379.0,0.4414105]
[1742000091571,0.1777651,84380.0,84379.0,0.4214105]
[1742000091772,0.1777651,84380.0,84379.0,0.1814105]
[1742000092470,0.2081651,84380.0,84379.0,0.1814105]
[1742000093876,0.2391651,84380.0,84379.0,0.1814105]
[1742000094066,0.2391651,84380.0,84379.0,0.0629]
[1742000094272,0.1185119,84378.0,84377.0,0.3608]
[1742000094472,0.3785119,84378.0,84377.0,0.3608]
[1742000094679,0.1814119,84378.0,84377.0,0.3608]
[1742000094969,0.2814119,84378.0,84377.0,0.3608]
[1742000095174,0.4314119,84378.0,84377.0,0.3608]
[1742000095371,0.4214119,84378.0,84377.0,0.3608]
[1742000095572,0.0592598,84373.0,84367.0,0.0626]
[1742000095820,0.1185231,84370.0,84367.0,0.0626]
[1742000096179,0.1185231,84370.0,84367.0,0.1811273]
[1742000096372,0.1185231,84370.0,84367.0,0.0626]
[1742000096574,0.1806231,84370.0,84367.0,0.0626]
[1742000096885,0.1806231,84370.0,84367.0,0.1811269]
[1742000097083,0.1806231,84370.0,84367.0,0.3608]
[1742000097283,0.2806231,84370.0,84369.0,0.00117777]
[1742000097485,0.1806231,84370.0,84369.0,0.00117777]
[1742000098475,0.1806231,84370.0,84369.0,0.00317777]
[1742000098975,0.4706231,84370.0,84369.0,0.00317777]
[1742000099175,0.1806231,84370.0,84369.0,0.00317777]
[1742000102984,0.2948231,84370.0,84369.0,0.00317777]
[1742000103585,0.1806231,84370.0,84369.0,0.00317777]
[1742000103888,0.2948231,84370.0,84369.0,0.03347777]
[1742000104083,0.1806231,84370.0,84369.0,0.03347777]
[1742000104292,0.2948231,84370.0,84369.0,0.03347777]
[1742000104789,0.1806231,84370.0,84369.0,0.03347777]
[1742000105979,0.2948231,84370.0,84369.0,0.06357777]
[1742000106873,0.1806231,84370.0,84369.0,0.43210227]
[1742000107079,0.1806231,84370.0,84369.0,0.45410227]
[1742000107283,0.1806231,84370.0,84369.0,0.21410227]
[1742000107473,0.2948231,84370.0,84369.0,0.21410227]
[1742000107674,0.1806231,84370.0,84369.0,0.42210227]
[1742000107888,0.2948231,84370.0,84369.0,0.47210227]
[1742000108086,0.2948231,84370.0,84369.0,0.18210227]
[1742000108284,0.2948231,84370.0,84369.0,0.44210227]
[1742000108584,0.2948231,84370.0,84369.0,0.18210227]
[1742000108789,0.1806231,84370.0,84369.0,0.44210227]
[1742000108981,0.2948231,84370.0,84369.0,0.44210227]
[1742000109181,0.1806231,84370.0,84369.0,0.18210227]
[1742000109381,0.2948231,84370.0,84369.0,0.18210227]
[1742000109788,0.1806231,84370.0,84369.0,0.18210227]
[1742000110292,0.2948231,84370.0,84369.0,0.18210227]
[1742000110491,0.1806231,84370.0,84369.0,0.18210227]
[1742000110693,0.2948231,84370.0,84369.0,0.18210227]
[1742000111491,0.1806231,84370.0,84369.0,0.18210227]
[1742000111693,0.2948231,84370.0,84369.0,0.18210227]
[1742000112491,0.1806231,84370.0,84369.0,0.18210227]
[1742000112986,0.1777796,84376.0,84375.0,0.1185147]
[1742000113193,0.0592589,84376.0,84375.0,0.4793147]
[1742000113381,0.1202589,84376.0,84375.0,0.5751147]
[1742000113582,0.0307,84389.0,84375.0,0.6553]
[1742000113781,0.0307,84389.0,84387.0,0.1184992]
[1742000113782,0.2936978,84388.0,84387.0,0.1184992]
[1742000113978,0.2326978,84388.0,84387.0,0.1184992]
[1742000116987,0.2326978,84388.0,84387.0,0.13030357]
[1742000117685,0.4294978,84388.0,84387.0,0.13030357]
[1742000119788,0.4294978,84388.0,84387.0,0.01180437]
[1742000119989,0.4294978,84388.0,84386.0,0.1185005]
[1742000119990,0.1184992,84387.0,84386.0,0.1185005]
[1742000120190,0.1184992,84387.0,84386.0,0.1285005]
[1742000120807,0.1184992,84387.0,84386.0,0.01]
[1742000120996,0.4084992,84387.0,84386.0,0.01]
[1742000121302,0.4733992,84387.0,84386.0,0.01]
[1742000121490,0.6701992,84387.0,84386.0,0.01]
[1742000121691,0.7014992,84387.0,84386.0,0.01]
[1742000124097,0.6701992,84387.0,84386.0,0.01]
[1742000130704,0.6701992,84387.0,84386.0,0.0415]
[1742000131901,0.7843592,84387.0,84386.0,0.0415]
[1742000138496,0.7194592,84387.0,84386.0,0.0415]
[1742000138999,0.7194592,84387.0,84386.0,0.0744]
[1742000139300,0.7194592,84387.0,84386.0,0.1929006]
[1742000141201,0.4084992,84387.0,84386.0,0.1929006]
[1742000142801,0.4084992,84387.0,84386.0,0.1949006]
[1742000142998,0.4084992,84387.0,84386.0,0.1959006]
[1742000144305,0.4084992,84387.0,84386.0,0.1949006]
[1742000144605,0.4084992,84387.0,84385.0,0.4805815]
[1742000144606,0.0592564,84378.0,84371.0,0.3608]
[1742000144810,0.40416,84387.0,84371.0,0.3608]
[1742000144811,0.3153077,84381.0,84380.0,0.0305]
[1742000144997,0.3153077,84381.0,84372.0,0.0325]
[1742000144998,0.1185189,84373.0,84372.0,0.0325]
[1742000145205,0.3785189,84373.0,84372.0,0.0425]
[1742000145600,0.3785189,84373.0,84372.0,0.0325]
[1742000145909,0.4085189,84373.0,84372.0,0.0325]
[1742000146215,0.1175231,84370.0,84364.0,0.28469638]
[1742000146508,0.3775231,84370.0,84367.0,0.24570482]
[1742000146895,0.3675231,84370.0,84367.0,0.24570482]
[1742000147099,0.3475231,84370.0,84367.0,0.24570482]
[1742000147807,0.3475231,84370.0,84369.0,0.00217777]
[1742000148599,0.3475231,84370.0,84369.0,0.00317777]
[1742000149206,0.3775231,84370.0,84369.0,0.00317777]
[1742000149601,0.3875231,84370.0,84369.0,0.00317777]
[1742000153915,0.3575231,84370.0,84369.0,0.00317777]
[1742000154102,0.1175231,84370.0,84369.0,0.00317777]
[1742000154307,0.3875231,84370.0,84369.0,0.00317777]
[1742000154503,0.3675231,84370.0,84369.0,0.00317777]
[1742000155017,0.3575231,84370.0,84369.0,0.00317777]
[1742000155409,0.3775231,84370.0,84369.0,0.00317777]
[1742000155806,0.3875231,84370.0,84369.0,0.00317777]
[1742000156207,0.1175231,84370.0,84369.0,0.00317777]
[1742000156410,0.3775231,84370.0,84369.0,0.00317777]
[1742000156615,0.3975231,84370.0,84369.0,0.00317777]
[1742000157307,0.1175231,84370.0,84369.0,0.00317777]
[1742000157508,0.5943231,84370.0,84369.0,0.00317777]
[1742000157706,0.5843231,84370.0,84369.0,0.00317777]
[1742000158111,0.5843231,84370.0,84369.0,0.03457777]
[1742000158316,0.3143231,84370.0,84369.0,0.03457777]
[1742000158520,0.5443231,84370.0,84369.0,0.03457777]
[1742000158722,0.1175231,84370.0,84369.0,0.06537777]
[1742000159104,0.4290231,84370.0,84369.0,0.06537777]
[1742000159316,0.3890231,84370.0,84369.0,0.06537777]
[1742000159817,0.4290231,84370.0,84369.0,0.06537777]
[1742000160507,0.4598231,84370.0,84369.0,0.06537777]
[1742000160713,0.2798231,84370.0,84369.0,0.06537777]
[1742000160915,0.4398231,84370.0,84369.0,0.06437777]
[1742000161115,0.4098231,84370.0,84369.0,0.06237777]
[1742000161317,0.4598231,84370.0,84369.0,0.06237777]
[1742000161818,0.2798231,84370.0,84369.0,0.06237777]
[1742000162718,0.1798231,84370.0,84369.0,0.06237777]
[1742000163023,0.2316831,84370.0,84369.0,0.06237777]
[1742000163220,0.3675231,84370.0,84369.0,0.06237777]
[1742000163422,0.1175231,84370.0,84369.0,0.06237777]
[1742000163622,0.2316831,84370.0,84369.0,0.18090227]
[1742000163824,0.1175231,84370.0,84369.0,0.18090227]
[1742000166530,0.1175231,84370.0,84369.0,0.98170227]
[1742000166829,0.1175231,84370.0,84369.0,0.86317777]
[1742000167023,0.1175231,84370.0,84369.0,0.98170227]
[1742000167326,0.3875231,84370.0,84369.0,0.98170227]
[1742000167829,0.3675231,84370.0,84369.0,0.98170227]
[1742000168125,0.1175231,84370.0,84369.0,0.98170227]
[1742000174334,0.0592581,84375.0,84374.0,0.1777727]
[1742000174633,0.0592581,84375.0,84374.0,0.6801727]
[1742000175840,0.0592581,84375.0,84374.0,0.351658]
[1742000179733,0.0592581,84375.0,84374.0,0.2924]
[1742000180039,0.1254581,84375.0,84374.0,0.2924]
[1742000180629,0.1254581,84375.0,84374.0,0.4109175]
[1742000181030,0.0924581,84375.0,84374.0,0.7717175]
[1742000181336,0.0592581,84375.0,84374.0,0.7717175]
[1742000181730,0.0592581,84375.0,84374.0,0.6532]
[1742000181931,0.0900581,84375.0,84374.0,0.7717175]
[1742000182526,0.1230581,84375.0,84374.0,0.7717175]
[1742000185238,0.1900581,84375.0,84374.0,0.6532]
[1742000185443,0.1231581,84375.0,84374.0,0.6532]
[1742000185646,0.1557581,84375.0,84374.0,0.6532]
[1742000186542,0.2557581,84375.0,84374.0,0.6532]
[1742000186843,0.3857581,84375.0,84374.0,0.6532]
[1742000187143,0.1557581,84375.0,84374.0,0.6532]
[1742000187533,0.1557581,84375.0,84374.0,0.7717175]
[1742000187743,0.1557581,84375.0,84374.0,0.6532]
[1742000187935,0.4257581,84375.0,84374.0,0.6532]
[1742000188133,0.1557581,84375.0,84374.0,0.6532]
[1742000188536,0.1557581,84375.0,84374.0,0.7717175]
[1742000190746,0.4057581,84375.0,84374.0,0.7717175]
[1742000190936,0.1557581,84375.0,84374.0,0.7717175]
[1742000193636,0.1557581,84375.0,84374.0,0.2606]
[1742000193946,0.1185414,84357.0,84356.0,0.3608]
[1742000194147,0.1185414,84357.0,84356.0,0.4708]
[1742000195850,0.1809414,84357.0,84356.0,0.424]
[1742000196640,0.19310653,84357.0,84356.0,0.424]
[1742000197047,0.45310653,84357.0,84356.0,0.424]
[1742000197249,0.19310653,84357.0,84356.0,0.424]
[1742000198251,0.1809414,84357.0,84356.0,0.424]
[1742000199451,0.4209414,84357.0,84356.0,0.424]
[1742000199651,0.4409414,84357.0,84356.0,0.424]
[1742000200936,0.4209414,84357.0,84356.0,0.424]
[1742000201647,0.4409414,84357.0,84356.0,0.424]
[1742000203547,0.1809414,84357.0,84356.0,0.424]
[1742000203756,0.1185414,84357.0,84356.0,0.424]
[1742000204154,0.1185414,84357.0,84356.0,0.5425428]
[1742000204549,0.1185414,84357.0,84356.0,0.424]
[1742000205560,0.1185414,84357.0,84356.0,0.5425428]
[1742000206262,0.1185414,84357.0,84356.0,0.8225428]
[1742000207659,0.3153414,84357.0,84356.0,0.8225428]
[1742000214157,0.00017777,84365.0,84360.0,0.0592678]
[1742000214353,0.1778073,84361.0,84360.0,0.4578022]
[1742000215559,0.1778073,84361.0,84360.0,0.3392678]
[1742000218361,0.05944307,84365.0,84362.0,0.1185344]
[1742000218668,0.11870887,84365.0,84364.0,0.1185316]
[1742000218861,0.11870887,84365.0,84364.0,0.4893316]
[1742000220271,0.11870887,84365.0,84364.0,0.3708]
[1742000221068,0.35870887,84365.0,84364.0,0.3708]
[1742000222370,0.36870887,84365.0,84364.0,0.3708]
[1742000223164,0.37870887,84365.0,84364.0,0.3708]
[1742000223371,0.11870887,84365.0,84364.0,0.4893316]
[1742000223758,0.38870887,84365.0,84364.0,0.4893316]
[1742000223959,0.11870887,84365.0,84364.0,0.4893316]
[1742000224361,0.38870887,84365.0,84364.0,0.4893316]
[1742000224969,0.40870887,84365.0,84364.0,0.4893316]
[1742000225468,0.11870887,84365.0,84364.0,0.4893316]
[1742000226974,0.34870887,84365.0,84364.0,0.4893316]
[1742000227371,0.11870887,84365.0,84364.0,0.4893316]
[1742000227674,0.31550887,84365.0,84364.0,0.4893316]
[1742000228065,0.58550887,84365.0,84364.0,0.4893316]
[1742000228374,0.31550887,84365.0,84364.0,0.4893316]
[1742000228573,0.31550887,84365.0,84364.0,0.5214316]
[1742000229674,0.11870887,84365.0,84364.0,0.5214316]
[1742000229874,0.05944307,84365.0,84364.0,0.5214316]
[1742000230074,0.00017777,84365.0,84364.0,0.8014316]
[1742000230271,0.00017777,84365.0,84364.0,0.5543316]
[1742000230568,0.00017777,84365.0,84364.0,0.5643316]
[1742000231179,0.11870787,84365.0,84364.0,0.5643316]
[1742000232367,0.39870787,84365.0,84364.0,0.5643316]
[1742000232572,0.11870787,84365.0,84364.0,0.5643316]
[1742000232782,0.35870787,84365.0,84364.0,0.5643316]
[1742000232975,0.37870787,84365.0,84364.0,0.5643316]
[1742000233176,0.36870787,84365.0,84364.0,0.5643316]
[1742000233371,0.11870787,84365.0,84364.0,0.5643316]
[1742000235788,0.36870787,84365.0,84364.0,0.5643316]
[1742000235977,0.11870787,84365.0,84364.0,0.5643316]
[1742000237786,0.11870787,84365.0,84364.0,0.4458]
[1742000238090,0.18430787,84365.0,84364.0,0.5643316]
[1742000238289,0.11870787,84365.0,84364.0,0.5643316]
[1742000240693,0.36870787,84365.0,84364.0,0.5643316]
[1742000240991,0.11870787,84365.0,84364.0,0.5643316]
[1742000241991,0.18210787,84365.0,84364.0,0.5643316]
[1742000245193,0.29210787,84365.0,84364.0,0.5643316]
[1742000245487,0.42210787,84365.0,84364.0,0.5643316]
[1742000245677,0.18210787,84365.0,84364.0,0.5643316]
[1742000246082,0.45210787,84365.0,84364.0,0.5643316]
[1742000246387,0.44210787,84365.0,84364.0,0.4458]
[1742000246790,0.46210787,84365.0,84364.0,0.4458]
[1742000247798,0.46210787,84365.0,84364.0,0.4358]
[1742000247988,0.18210787,84365.0,84364.0,0.4358]
[1742000248193,0.47210787,84365.0,84364.0,0.4358]
[1742000249200,0.44210787,84365.0,84364.0,0.4358]
[1742000249398,0.18210787,84365.0,84364.0,0.4358]
[1742000249600,0.46210787,84365.0,84364.0,0.4358]
[1742000249898,0.41210787,84365.0,84364.0,0.4358]
[1742000250801,0.45210787,84365.0,84364.0,0.4358]
[1742000251403,0.43210787,84365.0,84364.0,0.4358]
[1742000251702,0.46210787,84365.0,84364.0,0.4358]
[1742000251898,0.43210787,84365.0,84364.0,0.4358]
[1742000252204,0.18210787,84365.0,84364.0,0.4358]
[1742000252603,0.47210787,84365.0,84364.0,0.5543316]
[1742000253097,0.18210787,84365.0,84364.0,0.5543316]
[1742000253297,0.45210787,84365.0,84364.0,0.5543316]
[1742000253501,0.18210787,84365.0,84364.0,0.5543316]
[1742000254203,0.18210787,84365.0,84364.0,0.5843316]
[1742000256600,0.11870787,84365.0,84364.0,0.5843316]
[1742000256905,0.00017777,84365.0,84364.0,0.5943316]
[1742000257208,0.00017777,84365.0,84364.0,0.8543316]
[1742000257396,0.11870787,84365.0,84364.0,0.8643316]
[1742000257597,0.31550787,84365.0,84364.0,0.5943316]
[1742000257803,0.11870787,84365.0,84364.0,0.5943316]
[1742000261812,0.11870787,84365.0,84364.0,0.5643316]
[1742000262001,0.18170787,84365.0,84364.0,0.5955316]
[1742000262310,0.15150787,84365.0,84364.0,0.5955316]
[1742000264216,0.11870787,84365.0,84364.0,0.5955316]
[1742000270507,0.15140787,84365.0,84364.0,0.5955316]
[1742000270922,0.18330787,84365.0,84364.0,0.5955316]
[1742000273819,0.11870787,84365.0,84364.0,0.5955316]
[1742000280322,0.18120787,84365.0,84364.0,0.5955316]
[1742000282016,0.18120787,84365.0,84364.0,0.8555316]
[1742000282216,0.18120787,84365.0,84364.0,0.5955316]
[1742000282418,0.18120787,84365.0,84364.0,0.8355316]
[1742000282619,0.18120787,84365.0,84364.0,0.8555316]
[1742000283222,0.18120787,84365.0,84364.0,0.8255316]
[1742000284933,0.18120787,84365.0,84364.0,0.5955316]
[1742000285232,0.18120787,84365.0,84364.0,0.8455316]
[1742000285530,0.18120787,84365.0,84364.0,0.8555316]
[1742000285722,0.18120787,84365.0,84364.0,0.5955316]
[1742000285920,0.18120787,84365.0,84364.0,0.8155316]
[1742000286942,0.18120787,84365.0,84364.0,0.8455316]
[1742000287433,0.18120787,84365.0,84364.0,0.5955316]
[1742000287837,0.18120787,84365.0,84364.0,0.4458]
[1742000288136,0.21220787,84365.0,84364.0,0.4458]
[1742000290441,0.47220787,84365.0,84364.0,0.4458]
[1742000290639,0.21220787,84365.0,84364.0,0.4458]
[1742000292546,0.21220787,84365.0,84364.0,0.5643316]
[1742000293447,0.21220787,84365.0,84364.0,0.57602989]
[1742000294240,0.21220787,84365.0,84364.0,0.45749829]
[1742000295948,0.49220787,84365.0,84364.0,0.45749829]
[1742000296147,0.50220787,84365.0,84364.0,0.45749829]
[1742000296342,0.21220787,84365.0,84364.0,0.45749829]
[1742000297244,0.47220787,84365.0,84364.0,0.45749829]
[1742000297839,0.21220787,84365.0,84364.0,0.45749829]
[1742000298145,0.64900787,84365.0,84364.0,0.45749829]
[1742000298550,0.65900787,84365.0,84364.0,0.45749829]
[1742000298748,0.40900787,84365.0,84364.0,0.45749829]
[1742000298949,0.40900787,84365.0,84364.0,0.42459829]
[1742000299146,0.66900787,84365.0,84364.0,0.42459829]
[1742000299445,0.68900787,84365.0,84364.0,0.42459829]
[1742000299650,0.67900787,84365.0,84364.0,0.42459829]
[1742000299961,0.67900787,84365.0,84364.0,0.3708]
[1742000300252,0.68900787,84365.0,84364.0,0.3708]
[1742000300550,0.63900787,84365.0,84364.0,0.3708]
[1742000300944,0.63900787,84365.0,84364.0,0.3608]
[1742000301140,0.31534,84358.0,84357.0,0.3608]
[1742000301346,0.69946,84358.0,84357.0,0.3608]
[1742000301553,0.3153428,84356.0,84350.0,0.28469638]
[1742000301852,0.4153428,84356.0,84350.0,0.28469638]
[1742000302254,0.7395428,84356.0,84350.0,0.28469638]
[1742000302547,1.02119911,84356.0,84350.0,0.28469638]
[1742000303455,0.1185526,84349.0,84348.0,0.00017777]
[1742000303642,0.2327126,84349.0,84348.0,0.00017777]
[1742000304248,0.3272126,84349.0,84348.0,0.00017777]
[1742000304445,0.1185625,84342.0,84341.0,0.0316]
[1742000304751,0.1185625,84342.0,84341.0,0.03]
[1742000305147,0.3685625,84342.0,84341.0,0.03]
[1742000305354,0.1816625,84342.0,84341.0,0.03]
[1742000305749,0.4416625,84342.0,84341.0,0.03]
[1742000306051,0.1816625,84342.0,84341.0,0.03]
[1742000306355,0.4116625,84342.0,84341.0,0.03]
[1742000306565,0.1816625,84342.0,84341.0,0.03]
[1742000306861,0.4216625,84342.0,84341.0,0.03]
[1742000307158,0.1816625,84342.0,84341.0,0.03]
[1742000307354,0.4516625,84342.0,84341.0,0.03]
[1742000307549,0.1816625,84342.0,84341.0,0.03]
[1742000307744,0.4416625,84342.0,84341.0,0.03]
[1742000307949,0.1816625,84342.0,84341.0,0.03]
[1742000308149,0.4116625,84342.0,84341.0,0.03]
[1742000308353,0.1816625,84342.0,84341.0,0.03]
[1742000308558,0.4616625,84342.0,84341.0,0.03]
[1742000308950,0.4516625,84342.0,84341.0,0.03]
[1742000309156,0.1816625,84342.0,84341.0,0.03]
[1742000310457,0.4316625,84342.0,84341.0,0.03]
[1742000310658,0.1816625,84342.0,84341.0,0.03]
[1742000312761,0.3464625,84342.0,84341.0,0.1485639]
[1742000313064,0.3153625,84342.0,84341.0,0.1485639]
[1742000313961,0.1185625,84342.0,84341.0,0.1485639]
[1742000314550,0.1185625,84342.0,84341.0,0.03]
[1742000315153,0.1185625,84342.0,84341.0,0.094]
[1742000315553,0.1185625,84342.0,84341.0,0.2125639]
[1742000315755,0.2327225,84342.0,84341.0,0.094]
[1742000316458,0.2327225,84342.0,84341.0,0.2125639]
[1742000318362,0.2327225,84342.0,84341.0,0.2435639]
[1742000318558,0.059271,84357.0,84341.0,0.375]
[1742000318865,0.11416,84353.0,84351.0,0.3608]
[1742000319059,0.1734335,84353.0,84352.0,0.1185484]
[1742000319256,0.0592735,84353.0,84352.0,0.9320484]
[1742000319866,0.0592735,84353.0,84352.0,0.6820484]
[1742000320167,0.0592735,84353.0,84352.0,0.9120484]
[1742000320367,0.0592735,84353.0,84352.0,0.6820484]
[1742000320667,0.0592735,84353.0,84352.0,0.9020484]
[1742000320961,0.0592735,84353.0,84352.0,0.9120484]
[1742000321167,0.0592735,84353.0,84352.0,0.6820484]
[1742000321367,0.0592735,84353.0,84352.0,0.9020484]
[1742000321567,0.0592735,84353.0,84352.0,0.6820484]
[1742000331581,0.0592735,84353.0,84352.0,0.5635]
[1742000331782,0.1213735,84353.0,84352.0,0.5635]
[1742000332675,0.3181735,84353.0,84352.0,0.5635]
[1742000332880,0.1213735,84353.0,84352.0,0.5635]
[1742000334473,0.1213735,84353.0,84352.0,0.5315]
[1742000336879,0.1213735,84353.0,84352.0,0.2915]
[1742000337384,0.4013735,84353.0,84352.0,0.2915]
[1742000337885,0.3613735,84353.0,84352.0,0.2915]
[1742000338187,0.3913735,84353.0,84352.0,0.2915]
[1742000338887,0.1213735,84353.0,84352.0,0.2915]
[1742000339282,0.1213735,84353.0,84352.0,0.4100484]